[Event "*** SCC Grand Prix: Titled Tuesday Blitz"]
[Site "Chess.com"]
[Date "2020.08.11"]
[Round "4"]
[White "Susal_De_Silva"]
[Black "FlamingPhoenix123"]
[Result "0-1"]
[WhiteElo "2326"]
[BlackElo "2542"]
[TimeControl "180+1"]
[EndTime "10:38:34 PDT"]
[Termination "FlamingPhoenix123 won by resignation"]

1. e4 {[%clk 0:03:00.9]} 1... c5 {[%clk 0:02:59.1]} 2. Nf3 {[%clk 0:03:01]} 2...
d6 {[%clk 0:02:59.1]} 3. Bb5+ {[%clk 0:03:01]} 3... Bd7 {[%clk 0:02:58.7]} 4.
Bxd7+ {[%clk 0:03:00.9]} 4... Qxd7 {[%clk 0:02:59.6]} 5. c4 {[%clk 0:02:59.7]}
5... Nc6 {[%clk 0:02:56.2]} 6. Nc3 {[%clk 0:02:58.3]} 6... Nf6 {[%clk
0:02:41.5]} 7. O-O {[%clk 0:02:57]} 7... e6 {[%clk 0:02:39.3]} 8. d4 {[%clk
0:02:56.1]} 8... cxd4 {[%clk 0:02:39.5]} 9. Nxd4 {[%clk 0:02:57]} 9... Be7
{[%clk 0:02:37.8]} 10. Be3 {[%clk 0:02:55.1]} 10... O-O {[%clk 0:02:37.5]} 11.
f3 {[%clk 0:02:53.5]} 11... a6 {[%clk 0:02:35.4]} 12. Qd2 {[%clk 0:02:51]} 12...
Rfc8 {[%clk 0:02:29.7]} 13. b3 {[%clk 0:02:49.8]} 13... Nxd4 {[%clk 0:02:22.7]}
14. Bxd4 {[%clk 0:02:48.2]} 14... b5 {[%clk 0:02:23.6]} 15. cxb5 {[%clk
0:02:47.2]} 15... axb5 {[%clk 0:02:24.5]} 16. Rfc1 {[%clk 0:02:45.3]} 16... d5
{[%clk 0:02:18.8]} 17. exd5 {[%clk 0:02:37.8]} 17... Nxd5 {[%clk 0:02:19.7]} 18.
Nxd5 {[%clk 0:02:31.9]} 18... Qxd5 {[%clk 0:02:20.6]} 19. Qf2 {[%clk 0:02:29.2]}
19... Rd8 {[%clk 0:02:11.7]} 20. Bb2 {[%clk 0:02:16.6]} 20... b4 {[%clk
0:02:02.1]} 21. h3 {[%clk 0:01:53.2]} 21... Rac8 {[%clk 0:01:49.8]} 22. Rxc8
{[%clk 0:01:49.3]} 22... Rxc8 {[%clk 0:01:50.7]} 23. Kh1 {[%clk 0:01:43.4]}
23... f6 {[%clk 0:01:39.9]} 24. Re1 {[%clk 0:01:33.7]} 24... e5 {[%clk 0:01:37]}
25. Qe2 {[%clk 0:01:31]} 25... Rc5 {[%clk 0:01:22.7]} 26. f4 {[%clk 0:01:23.9]}
26... Qc6 {[%clk 0:01:19]} 27. Qg4 {[%clk 0:00:38.1]} 27... Rc2 {[%clk
0:01:09.8]} 28. Ba1 {[%clk 0:00:36.4]} 28... f5 {[%clk 0:00:52.8]} 29. Qg3
{[%clk 0:00:31.7]} 29... Bh4 {[%clk 0:00:51.4]} 0-1

[Event "*** SCC Grand Prix: Titled Tuesday Blitz"]
[Site "Chess.com"]
[Date "2020.08.11"]
[Round "4"]
[White "korbul"]
[Black "DishonorOnYourCow"]
[Result "1-0"]
[WhiteElo "2577"]
[BlackElo "2319"]
[TimeControl "180+1"]
[EndTime "10:38:35 PDT"]
[Termination "korbul won by resignation"]

1. e4 {[%clk 0:03:00.9]} 1... c5 {[%clk 0:02:59.2]} 2. Nf3 {[%clk 0:03:00.5]}
2... d6 {[%clk 0:02:58.4]} 3. d4 {[%clk 0:03:00.6]} 3... cxd4 {[%clk 0:02:56.6]}
4. Nxd4 {[%clk 0:03:01.5]} 4... Nf6 {[%clk 0:02:56.1]} 5. Nc3 {[%clk 0:03:01.6]}
5... a6 {[%clk 0:02:56]} 6. Be2 {[%clk 0:02:59.7]} 6... e5 {[%clk 0:02:53.9]} 7.
Nb3 {[%clk 0:02:59.2]} 7... Be7 {[%clk 0:02:50.7]} 8. f4 {[%clk 0:02:59.2]} 8...
Nc6 {[%clk 0:02:48]} 9. O-O {[%clk 0:02:58.6]} 9... O-O {[%clk 0:02:45.3]} 10.
Kh1 {[%clk 0:02:57.7]} 10... b5 {[%clk 0:02:44.8]} 11. a4 {[%clk 0:02:55.9]}
11... b4 {[%clk 0:02:43.2]} 12. Nd5 {[%clk 0:02:56]} 12... Bb7 {[%clk
0:02:35.1]} 13. a5 {[%clk 0:02:36]} 13... Nxe4 {[%clk 0:02:26.6]} 14. f5 {[%clk
0:02:22.3]} 14... Bg5 {[%clk 0:02:12.3]} 15. f6 {[%clk 0:02:14.8]} 15... Bxc1
{[%clk 0:01:16.8]} 16. Qxc1 {[%clk 0:02:12.7]} 16... Nxf6 {[%clk 0:01:11]} 17.
Rxf6 {[%clk 0:02:12]} 17... gxf6 {[%clk 0:01:11.9]} 18. Qh6 {[%clk 0:02:10.8]}
18... Nb8 {[%clk 0:00:27.7]} 19. Nxf6+ {[%clk 0:02:07.4]} 19... Qxf6 {[%clk
0:00:27.6]} 20. Qxf6 {[%clk 0:02:07.3]} 20... Nd7 {[%clk 0:00:27.9]} 21. Qxd6
{[%clk 0:02:01.9]} 21... Rad8 {[%clk 0:00:26.1]} 22. Bxa6 {[%clk 0:01:31.7]}
22... Nb8 {[%clk 0:00:23.3]} 23. Qxd8 {[%clk 0:01:31.1]} 23... Rxd8 {[%clk
0:00:22.6]} 24. Bxb7 {[%clk 0:01:30.4]} 24... Nd7 {[%clk 0:00:15.9]} 25. a6
{[%clk 0:01:29.9]} 25... Nb6 {[%clk 0:00:16]} 26. a7 {[%clk 0:01:29]} 26... Na8
{[%clk 0:00:16.5]} 27. Bxa8 {[%clk 0:01:28.3]} 27... Rxa8 {[%clk 0:00:16.2]} 28.
g3 {[%clk 0:01:23.5]} 28... e4 {[%clk 0:00:16.1]} 29. Kg1 {[%clk 0:01:23.1]}
29... f5 {[%clk 0:00:16.5]} 30. Kf2 {[%clk 0:01:23.2]} 30... Kf7 {[%clk
0:00:17]} 31. Ke3 {[%clk 0:01:23.6]} 31... Ke6 {[%clk 0:00:17.3]} 32. Kf4 {[%clk
0:01:23.8]} 32... Kd5 {[%clk 0:00:16.3]} 33. Kxf5 {[%clk 0:01:24]} 33... e3
{[%clk 0:00:16.7]} 34. Nc1 {[%clk 0:01:13.8]} 34... Kd4 {[%clk 0:00:15.6]} 35.
Ne2+ {[%clk 0:01:13.4]} 35... Kc4 {[%clk 0:00:15.1]} 36. Kf4 {[%clk 0:01:13]}
36... b3 {[%clk 0:00:14.1]} 37. cxb3+ {[%clk 0:01:13]} 37... Kd3 {[%clk
0:00:13.4]} 38. Kf3 {[%clk 0:01:11.4]} 38... Rf8+ {[%clk 0:00:12.5]} 39. Nf4+
{[%clk 0:01:11.2]} 39... Kd2 {[%clk 0:00:10.5]} 40. a8=Q {[%clk 0:01:10.9]} 1-0

[Event "*** SCC Grand Prix: Titled Tuesday Blitz"]
[Site "Chess.com"]
[Date "2020.08.11"]
[Round "4"]
[White "GMJustin"]
[Black "Sergey85Rodchenkov"]
[Result "0-1"]
[WhiteElo "2281"]
[BlackElo "2476"]
[TimeControl "180+1"]
[EndTime "10:38:35 PDT"]
[Termination "Sergey85Rodchenkov won on time"]

1. d4 {[%clk 0:02:52.5]} 1... Nf6 {[%clk 0:02:59.3]} 2. c4 {[%clk 0:02:51.6]}
2... e6 {[%clk 0:02:59.2]} 3. Nc3 {[%clk 0:02:47.8]} 3... Bb4 {[%clk 0:02:58.7]}
4. e3 {[%clk 0:02:47.3]} 4... c5 {[%clk 0:02:58.2]} 5. Bd3 {[%clk 0:02:42.3]}
5... Nc6 {[%clk 0:02:57.8]} 6. Nf3 {[%clk 0:02:32.1]} 6... d6 {[%clk 0:02:57.4]}
7. O-O {[%clk 0:02:28.3]} 7... Bxc3 {[%clk 0:02:57.1]} 8. bxc3 {[%clk
0:02:27.7]} 8... e5 {[%clk 0:02:57.7]} 9. Nd2 {[%clk 0:02:10.6]} 9... O-O {[%clk
0:02:48.5]} 10. Nb3 {[%clk 0:01:53.4]} 10... b6 {[%clk 0:02:47.6]} 11. f4 {[%clk
0:01:48]} 11... exd4 {[%clk 0:02:25.4]} 12. cxd4 {[%clk 0:01:42.4]} 12... Re8
{[%clk 0:02:25]} 13. d5 {[%clk 0:01:25.5]} 13... Nb4 {[%clk 0:02:15.3]} 14. Bb1
{[%clk 0:01:17.4]} 14... Bg4 {[%clk 0:02:03.4]} 15. Qe1 {[%clk 0:01:11.6]} 15...
Qd7 {[%clk 0:01:50]} 16. a3 {[%clk 0:01:05.8]} 16... Na6 {[%clk 0:01:49.6]} 17.
Bb2 {[%clk 0:00:51.8]} 17... Ne4 {[%clk 0:01:38.7]} 18. Nd2 {[%clk 0:00:23.6]}
18... Nxd2 {[%clk 0:01:21.3]} 19. Qxd2 {[%clk 0:00:23.4]} 19... Bf5 {[%clk
0:01:21.4]} 20. Ba2 {[%clk 0:00:18.5]} 20... Nc7 {[%clk 0:01:15.3]} 21. Rae1
{[%clk 0:00:18.3]} 21... Be4 {[%clk 0:01:14.8]} 22. Qc3 {[%clk 0:00:18.3]} 22...
f6 {[%clk 0:01:14.3]} 23. h3 {[%clk 0:00:16.2]} 23... b5 {[%clk 0:01:10.9]} 24.
cxb5 {[%clk 0:00:07.5]} 24... Nxb5 {[%clk 0:01:10.3]} 25. Qd2 {[%clk 0:00:07.4]}
25... Rab8 {[%clk 0:01:07.9]} 26. Bc4 {[%clk 0:00:07.3]} 26... Nc7 {[%clk
0:01:04.1]} 27. Bc3 {[%clk 0:00:06.3]} 27... Qa4 {[%clk 0:01:01.6]} 0-1

[Event "*** SCC Grand Prix: Titled Tuesday Blitz"]
[Site "Chess.com"]
[Date "2020.08.11"]
[Round "4"]
[White "tan275"]
[Black "Sn00pPawn"]
[Result "0-1"]
[WhiteElo "2221"]
[BlackElo "2011"]
[TimeControl "180+1"]
[EndTime "10:38:35 PDT"]
[Termination "Sn00pPawn won by resignation"]

1. d4 {[%clk 0:03:00.9]} 1... Nf6 {[%clk 0:02:50.8]} 2. c4 {[%clk 0:03:00.8]}
2... g6 {[%clk 0:02:51.7]} 3. g3 {[%clk 0:03:00.8]} 3... Bg7 {[%clk 0:02:51.7]}
4. Bg2 {[%clk 0:03:01.7]} 4... O-O {[%clk 0:02:51.7]} 5. Nf3 {[%clk 0:03:02.2]}
5... d6 {[%clk 0:02:51.9]} 6. Nc3 {[%clk 0:03:02.3]} 6... Nc6 {[%clk 0:02:52.2]}
7. O-O {[%clk 0:03:00.7]} 7... a6 {[%clk 0:02:52.2]} 8. b3 {[%clk 0:02:59.4]}
8... Rb8 {[%clk 0:02:52]} 9. Bg5 {[%clk 0:02:47.3]} 9... h6 {[%clk 0:02:09.9]}
10. Bxf6 {[%clk 0:02:34.9]} 10... Bxf6 {[%clk 0:02:09.2]} 11. Nd5 {[%clk
0:02:32.6]} 11... Bg7 {[%clk 0:02:06.8]} 12. Rc1 {[%clk 0:02:32.9]} 12... Bg4
{[%clk 0:02:03.5]} 13. h3 {[%clk 0:02:31.8]} 13... Bxf3 {[%clk 0:02:02.9]} 14.
Bxf3 {[%clk 0:02:31.4]} 14... Nxd4 {[%clk 0:02:02.1]} 15. Bg2 {[%clk 0:02:29]}
15... c5 {[%clk 0:01:56.4]} 16. Qd3 {[%clk 0:02:20]} 16... b5 {[%clk 0:01:49.4]}
17. e3 {[%clk 0:02:16.7]} 17... Nc6 {[%clk 0:01:43.5]} 18. cxb5 {[%clk
0:02:12.4]} 18... axb5 {[%clk 0:01:42.2]} 19. Rfd1 {[%clk 0:02:04]} 19... e6
{[%clk 0:01:18.8]} 20. Nf6+ {[%clk 0:01:59.2]} 20... Bxf6 {[%clk 0:00:56.3]} 21.
Bxc6 {[%clk 0:02:00.1]} 21... Qb6 {[%clk 0:00:51.2]} 22. Qxd6 {[%clk 0:01:41.9]}
22... Rbd8 {[%clk 0:00:44.9]} 23. Qf4 {[%clk 0:01:32]} 23... Bb2 {[%clk
0:00:45.1]} 24. Rxd8 {[%clk 0:01:23.5]} 24... Rxd8 {[%clk 0:00:43.6]} 25. Rb1
{[%clk 0:01:11.2]} 25... Qxc6 {[%clk 0:00:40.9]} 26. Qh4 {[%clk 0:01:06.7]}
26... Rd2 {[%clk 0:00:30.9]} 27. Qxh6 {[%clk 0:01:02]} 27... Qf3 {[%clk
0:00:27.4]} 28. Qf4 {[%clk 0:01:01.6]} 28... Qxf4 {[%clk 0:00:22.5]} 29. gxf4
{[%clk 0:01:00.6]} 29... c4 {[%clk 0:00:22.8]} 30. bxc4 {[%clk 0:00:58.9]} 30...
bxc4 {[%clk 0:00:21.4]} 31. Kf1 {[%clk 0:00:59.8]} 31... c3 {[%clk 0:00:18]} 32.
Ke1 {[%clk 0:00:59.6]} 32... c2 {[%clk 0:00:14.3]} 0-1

[Event "*** SCC Grand Prix: Titled Tuesday Blitz"]
[Site "Chess.com"]
[Date "2020.08.11"]
[Round "4"]
[White "PSvidler"]
[Black "bascheyaro"]
[Result "1-0"]
[WhiteElo "2930"]
[BlackElo "2706"]
[TimeControl "180+1"]
[EndTime "10:38:36 PDT"]
[Termination "PSvidler won by checkmate"]

1. e4 {[%clk 0:03:00.9]} 1... e6 {[%clk 0:03:00.1]} 2. d4 {[%clk 0:03:00.4]}
2... d5 {[%clk 0:03:00.6]} 3. Nd2 {[%clk 0:03:00.3]} 3... c5 {[%clk 0:03:00.8]}
4. Ngf3 {[%clk 0:02:59.7]} 4... Nc6 {[%clk 0:03:01.1]} 5. exd5 {[%clk 0:02:59]}
5... exd5 {[%clk 0:03:01.1]} 6. Bb5 {[%clk 0:02:59.2]} 6... c4 {[%clk
0:03:01.7]} 7. O-O {[%clk 0:02:58.1]} 7... Bd6 {[%clk 0:03:02.2]} 8. b3 {[%clk
0:02:49.2]} 8... cxb3 {[%clk 0:03:03.1]} 9. Bxc6+ {[%clk 0:02:49.1]} 9... bxc6
{[%clk 0:03:03.1]} 10. axb3 {[%clk 0:02:49.7]} 10... Ne7 {[%clk 0:03:01.4]} 11.
Ba3 {[%clk 0:02:49.5]} 11... Bxa3 {[%clk 0:03:01.3]} 12. Rxa3 {[%clk 0:02:49.4]}
12... O-O {[%clk 0:03:02]} 13. Qa1 {[%clk 0:02:49.4]} 13... Qc7 {[%clk 0:03:00]}
14. Qc3 {[%clk 0:02:48.9]} 14... Bg4 {[%clk 0:02:36.6]} 15. Ne5 {[%clk
0:02:45.1]} 15... Bh5 {[%clk 0:02:33]} 16. Rfa1 {[%clk 0:02:43.9]} 16... f6
{[%clk 0:02:32]} 17. Nd3 {[%clk 0:02:43.5]} 17... Nf5 {[%clk 0:02:15.3]} 18. Nb4
{[%clk 0:02:27]} 18... Qf4 {[%clk 0:02:13.7]} 19. Nxc6 {[%clk 0:02:16.6]} 19...
Rac8 {[%clk 0:02:13.5]} 20. b4 {[%clk 0:02:09.5]} 20... Be8 {[%clk 0:02:05.4]}
21. g3 {[%clk 0:02:04.2]} 21... Qc7 {[%clk 0:01:39]} 22. b5 {[%clk 0:02:04.2]}
22... Bxc6 {[%clk 0:01:38.8]} 23. bxc6 {[%clk 0:02:04.2]} 23... Qxc6 {[%clk
0:01:39.1]} 24. Qxc6 {[%clk 0:01:38.3]} 24... Rxc6 {[%clk 0:01:40]} 25. c3
{[%clk 0:01:38.9]} 25... h5 {[%clk 0:01:31.6]} 26. Ra5 {[%clk 0:01:24.7]} 26...
Rd8 {[%clk 0:01:11.7]} 27. R1a3 {[%clk 0:01:22.9]} 27... Kh7 {[%clk 0:01:04.9]}
28. Rxa7 {[%clk 0:01:21.5]} 28... Rdc8 {[%clk 0:01:00.5]} 29. Rd7 {[%clk
0:01:19.2]} 29... Rxc3 {[%clk 0:01:00.3]} 30. Rxc3 {[%clk 0:01:20.1]} 30... Rxc3
{[%clk 0:01:00.8]} 31. Rxd5 {[%clk 0:01:20.7]} 31... Kg6 {[%clk 0:00:59.1]} 32.
Kg2 {[%clk 0:01:07.9]} 32... Rc2 {[%clk 0:00:34.5]} 33. Nf1 {[%clk 0:01:07.7]}
33... Rc4 {[%clk 0:00:34.7]} 34. Rxf5 {[%clk 0:01:07.2]} 34... Rxd4 {[%clk
0:00:25.3]} 35. Ra5 {[%clk 0:01:06.7]} 35... Rb4 {[%clk 0:00:23.4]} 36. Ne3
{[%clk 0:01:06.7]} 36... Rd4 {[%clk 0:00:17]} 37. Nd5 {[%clk 0:01:06]} 37... h4
{[%clk 0:00:15.3]} 38. Nf4+ {[%clk 0:01:06]} 38... Kh6 {[%clk 0:00:15.7]} 39.
Rh5# {[%clk 0:01:05.7]} 1-0

[Event "*** SCC Grand Prix: Titled Tuesday Blitz"]
[Site "Chess.com"]
[Date "2020.08.11"]
[Round "4"]
[White "Mr_Sinigami"]
[Black "Region_07"]
[Result "1-0"]
[WhiteElo "2615"]
[BlackElo "2394"]
[TimeControl "180+1"]
[EndTime "10:38:37 PDT"]
[Termination "Mr_Sinigami won by resignation"]

1. d4 {[%clk 0:03:00.9]} 1... f5 {[%clk 0:02:56.6]} 2. Nf3 {[%clk 0:02:59.9]}
2... Nf6 {[%clk 0:02:56.4]} 3. g3 {[%clk 0:02:59.6]} 3... g6 {[%clk 0:02:54.1]}
4. Bg2 {[%clk 0:02:59.2]} 4... Bg7 {[%clk 0:02:54.6]} 5. O-O {[%clk 0:02:59.2]}
5... O-O {[%clk 0:02:55.2]} 6. c4 {[%clk 0:02:58.6]} 6... d6 {[%clk 0:02:55.5]}
7. Nc3 {[%clk 0:02:57.1]} 7... c6 {[%clk 0:02:55.2]} 8. b3 {[%clk 0:02:45.4]}
8... a5 {[%clk 0:02:53.8]} 9. a3 {[%clk 0:02:34.9]} 9... Qc7 {[%clk 0:02:47.3]}
10. Bb2 {[%clk 0:02:22]} 10... e5 {[%clk 0:02:43.2]} 11. c5 {[%clk 0:01:54.1]}
11... e4 {[%clk 0:02:02.9]} 12. cxd6 {[%clk 0:01:50]} 12... Qxd6 {[%clk
0:02:03.8]} 13. Ne5 {[%clk 0:01:50.1]} 13... Be6 {[%clk 0:01:58.1]} 14. e3
{[%clk 0:01:42.7]} 14... Nbd7 {[%clk 0:01:45.1]} 15. Nc4 {[%clk 0:01:27.8]}
15... Qc7 {[%clk 0:01:32.2]} 16. a4 {[%clk 0:01:27.7]} 16... Nd5 {[%clk
0:01:28.5]} 17. Nxd5 {[%clk 0:01:19.5]} 17... Bxd5 {[%clk 0:01:08.5]} 18. Ba3
{[%clk 0:01:19]} 18... Rf6 {[%clk 0:01:05.6]} 19. Rc1 {[%clk 0:01:14.1]} 19...
Re8 {[%clk 0:00:59.4]} 20. Qd2 {[%clk 0:01:11.1]} 20... b6 {[%clk 0:00:59]} 21.
Rc2 {[%clk 0:01:07.3]} 21... h5 {[%clk 0:00:53.5]} 22. Rfc1 {[%clk 0:00:56.1]}
22... h4 {[%clk 0:00:52.7]} 23. Ne5 {[%clk 0:00:55.8]} 23... Nxe5 {[%clk
0:00:40.4]} 24. dxe5 {[%clk 0:00:55.6]} 24... Rfe6 {[%clk 0:00:40.9]} 25. Qxd5
{[%clk 0:00:53.2]} 25... Qf7 {[%clk 0:00:35.1]} 26. Rxc6 {[%clk 0:00:49.5]}
26... Rxc6 {[%clk 0:00:32.8]} 27. Qxf7+ {[%clk 0:00:47.5]} 27... Kxf7 {[%clk
0:00:28.7]} 28. Rxc6 {[%clk 0:00:48.4]} 28... hxg3 {[%clk 0:00:27.6]} 29. hxg3
{[%clk 0:00:48.1]} 29... Rxe5 {[%clk 0:00:27.2]} 30. Rc7+ {[%clk 0:00:45.5]}
30... Kg8 {[%clk 0:00:25.3]} 31. Bb2 {[%clk 0:00:42.5]} 1-0

[Event "*** SCC Grand Prix: Titled Tuesday Blitz"]
[Site "Chess.com"]
[Date "2020.08.11"]
[Round "4"]
[White "keshka01"]
[Black "floplover"]
[Result "1-0"]
[WhiteElo "2595"]
[BlackElo "2306"]
[TimeControl "180+1"]
[EndTime "10:38:37 PDT"]
[Termination "keshka01 won by resignation"]

1. e4 {[%clk 0:03:00.9]} 1... c6 {[%clk 0:03:00]} 2. c4 {[%clk 0:02:59.3]} 2...
d5 {[%clk 0:02:57.4]} 3. cxd5 {[%clk 0:03:00.2]} 3... cxd5 {[%clk 0:02:58.1]} 4.
exd5 {[%clk 0:03:01.1]} 4... Nf6 {[%clk 0:02:58.5]} 5. Qa4+ {[%clk 0:03:00.5]}
5... Bd7 {[%clk 0:02:38.9]} 6. Qb3 {[%clk 0:02:58.3]} 6... Na6 {[%clk
0:02:05.8]} 7. d4 {[%clk 0:02:49.8]} 7... Qb6 {[%clk 0:01:42.6]} 8. Qxb6 {[%clk
0:01:58]} 8... axb6 {[%clk 0:01:41.7]} 9. Bxa6 {[%clk 0:01:57.4]} 9... bxa6
{[%clk 0:01:40.6]} 10. Nc3 {[%clk 0:01:58.3]} 10... b5 {[%clk 0:01:41]} 11. a3
{[%clk 0:01:57.3]} 11... e6 {[%clk 0:01:30]} 12. dxe6 {[%clk 0:01:55.6]} 12...
Bxe6 {[%clk 0:01:30.9]} 13. Nge2 {[%clk 0:01:52.4]} 13... Be7 {[%clk 0:01:21]}
14. O-O {[%clk 0:01:51.4]} 14... O-O {[%clk 0:01:20.9]} 15. Re1 {[%clk
0:01:51.5]} 15... h6 {[%clk 0:01:20.2]} 16. Nf4 {[%clk 0:01:50.7]} 16... Rfe8
{[%clk 0:01:11.1]} 17. Nxe6 {[%clk 0:01:49.7]} 17... fxe6 {[%clk 0:01:11]} 18.
Rxe6 {[%clk 0:01:50.4]} 18... Bxa3 {[%clk 0:01:08.8]} 19. Rxe8+ {[%clk
0:01:44.5]} 19... Rxe8 {[%clk 0:01:09.7]} 20. Kf1 {[%clk 0:01:44.9]} 20... Bb4
{[%clk 0:01:06.6]} 21. Rxa6 {[%clk 0:01:39.7]} 21... Ne4 {[%clk 0:00:54]} 22.
Nxe4 {[%clk 0:01:34.5]} 22... Rxe4 {[%clk 0:00:53.4]} 23. Be3 {[%clk 0:01:35.1]}
23... Be7 {[%clk 0:00:41.3]} 24. Rb6 {[%clk 0:01:31.1]} 24... b4 {[%clk
0:00:41.2]} 25. Ke2 {[%clk 0:01:29.8]} 25... Kf7 {[%clk 0:00:39.8]} 26. Kd3
{[%clk 0:01:29.8]} 26... Rg4 {[%clk 0:00:38.5]} 27. g3 {[%clk 0:01:29.9]} 27...
h5 {[%clk 0:00:27.6]} 28. h3 {[%clk 0:01:29.3]} 28... Rg6 {[%clk 0:00:27.6]} 29.
Rxg6 {[%clk 0:01:29.7]} 29... Kxg6 {[%clk 0:00:28.5]} 30. Ke4 {[%clk 0:01:30.1]}
30... h4 {[%clk 0:00:26.8]} 31. g4 {[%clk 0:01:29.3]} 31... Kf6 {[%clk
0:00:24.2]} 32. b3 {[%clk 0:01:29.4]} 32... Ke6 {[%clk 0:00:23.9]} 33. f4 {[%clk
0:01:28.6]} 33... Bd6 {[%clk 0:00:22.4]} 34. f5+ {[%clk 0:01:29.5]} 34... Kf6
{[%clk 0:00:20.9]} 35. Bf4 {[%clk 0:01:27.9]} 35... Be7 {[%clk 0:00:17.6]} 36.
Be5+ {[%clk 0:01:25.6]} 36... Kf7 {[%clk 0:00:17.8]} 37. Kd5 {[%clk 0:01:24.3]}
37... Bg5 {[%clk 0:00:15.4]} 38. Kc6 {[%clk 0:01:20.9]} 38... Be3 {[%clk
0:00:07.9]} 39. d5 {[%clk 0:01:21.1]} 39... Bf4 {[%clk 0:00:07.7]} 40. Bxf4
{[%clk 0:01:21.2]} 1-0

[Event "*** SCC Grand Prix: Titled Tuesday Blitz"]
[Site "Chess.com"]
[Date "2020.08.11"]
[Round "4"]
[White "dosto07"]
[Black "dopolian"]
[Result "0-1"]
[WhiteElo "2300"]
[BlackElo "2525"]
[TimeControl "180+1"]
[EndTime "10:38:38 PDT"]
[Termination "dopolian won by resignation"]

1. e4 {[%clk 0:02:57.3]} 1... e5 {[%clk 0:02:59.8]} 2. Nf3 {[%clk 0:02:56.5]}
2... Nc6 {[%clk 0:02:59.7]} 3. Bb5 {[%clk 0:02:56.6]} 3... a6 {[%clk 0:03:00]}
4. Bxc6 {[%clk 0:02:57.1]} 4... dxc6 {[%clk 0:03:00.9]} 5. O-O {[%clk
0:02:57.2]} 5... f6 {[%clk 0:03:01.6]} 6. d4 {[%clk 0:02:56.5]} 6... exd4 {[%clk
0:03:02.5]} 7. Nxd4 {[%clk 0:02:56.6]} 7... c5 {[%clk 0:03:02.9]} 8. Ne2 {[%clk
0:02:57.1]} 8... Qxd1 {[%clk 0:03:03]} 9. Rxd1 {[%clk 0:02:56.9]} 9... Bg4
{[%clk 0:03:02.4]} 10. f3 {[%clk 0:02:57]} 10... Bd7 {[%clk 0:03:03.1]} 11. Nbc3
{[%clk 0:02:57.4]} 11... O-O-O {[%clk 0:02:46.1]} 12. Be3 {[%clk 0:02:56]} 12...
b6 {[%clk 0:02:42.7]} 13. Rd2 {[%clk 0:02:53.2]} 13... Ne7 {[%clk 0:02:39.4]}
14. Rad1 {[%clk 0:02:51.1]} 14... Ng6 {[%clk 0:02:33.2]} 15. Nf4 {[%clk
0:02:48.4]} 15... Nxf4 {[%clk 0:02:31.8]} 16. Bxf4 {[%clk 0:02:47.6]} 16... c4
{[%clk 0:01:46.7]} 17. Nd5 {[%clk 0:02:35.9]} 17... Bc5+ {[%clk 0:01:46.8]} 18.
Kf1 {[%clk 0:02:30.9]} 18... c6 {[%clk 0:01:46.7]} 19. Nc7 {[%clk 0:01:50.3]}
19... g5 {[%clk 0:01:34.5]} 20. Bg3 {[%clk 0:01:35]} 20... Be3 {[%clk
0:01:20.7]} 21. Re2 {[%clk 0:01:33.4]} 21... Bf4 {[%clk 0:01:20.8]} 22. Bxf4
{[%clk 0:01:27]} 22... gxf4 {[%clk 0:01:21.7]} 23. Nxa6 {[%clk 0:01:26.3]} 23...
c5 {[%clk 0:01:16]} 24. Red2 {[%clk 0:01:07.2]} 24... Bb5 {[%clk 0:01:09.4]} 25.
Rxd8+ {[%clk 0:00:51.7]} 25... Rxd8 {[%clk 0:01:10.3]} 26. Rxd8+ {[%clk
0:00:46.8]} 26... Kxd8 {[%clk 0:01:11.2]} 27. Kf2 {[%clk 0:00:41.5]} 27... Bxa6
{[%clk 0:01:10.6]} 28. g3 {[%clk 0:00:42.4]} 28... fxg3+ {[%clk 0:01:08.6]} 29.
Kxg3 {[%clk 0:00:43.3]} 29... Ke7 {[%clk 0:00:57.8]} 30. Kf4 {[%clk 0:00:43.4]}
30... b5 {[%clk 0:00:50.9]} 31. e5 {[%clk 0:00:42.9]} 31... Bb7 {[%clk
0:00:48.2]} 32. exf6+ {[%clk 0:00:40]} 32... Kxf6 {[%clk 0:00:49.1]} 33. a3
{[%clk 0:00:34]} 33... h5 {[%clk 0:00:44.7]} 34. h4 {[%clk 0:00:32.8]} 34... Bc6
{[%clk 0:00:44.3]} 35. c3 {[%clk 0:00:32.5]} 35... Bb7 {[%clk 0:00:44]} 36. Ke3
{[%clk 0:00:28.4]} 36... Ke5 {[%clk 0:00:43.1]} 0-1

[Event "*** SCC Grand Prix: Titled Tuesday Blitz"]
[Site "Chess.com"]
[Date "2020.08.11"]
[Round "4"]
[White "RobPeresian"]
[Black "Mikasinski"]
[Result "0-1"]
[WhiteElo "2241"]
[BlackElo "2443"]
[TimeControl "180+1"]
[EndTime "10:38:39 PDT"]
[Termination "Mikasinski won by resignation"]

1. Nf3 {[%clk 0:03:00.9]} 1... Nf6 {[%clk 0:02:59.8]} 2. c4 {[%clk 0:03:00.3]}
2... g6 {[%clk 0:03:00.4]} 3. Nc3 {[%clk 0:02:56]} 3... Bg7 {[%clk 0:03:01]} 4.
e4 {[%clk 0:02:55.6]} 4... d6 {[%clk 0:03:01.6]} 5. d4 {[%clk 0:02:56]} 5... O-O
{[%clk 0:03:02.1]} 6. h3 {[%clk 0:02:55.1]} 6... e5 {[%clk 0:03:02.2]} 7. d5
{[%clk 0:02:54.7]} 7... Nh5 {[%clk 0:03:02.8]} 8. Ng1 {[%clk 0:02:53.2]} 8...
Qe8 {[%clk 0:02:59.3]} 9. Be2 {[%clk 0:02:51.8]} 9... f5 {[%clk 0:01:50]} 10.
exf5 {[%clk 0:02:51.4]} 10... Nf4 {[%clk 0:01:50.2]} 11. Bxf4 {[%clk 0:02:47.4]}
11... exf4 {[%clk 0:01:50.2]} 12. fxg6 {[%clk 0:02:47.4]} 12... Qxg6 {[%clk
0:01:48]} 13. Bg4 {[%clk 0:02:47.3]} 13... Re8+ {[%clk 0:01:45.4]} 14. Kf1
{[%clk 0:02:45.2]} 14... Bxg4 {[%clk 0:01:40.5]} 15. Qxg4 {[%clk 0:02:44.4]}
15... Qd3+ {[%clk 0:01:40]} 16. Nge2 {[%clk 0:02:44.4]} 16... Qxc4 {[%clk
0:01:29.2]} 17. Qxf4 {[%clk 0:02:43.8]} 17... Qc5 {[%clk 0:01:20.6]} 18. Kg1
{[%clk 0:02:10.6]} 18... Nd7 {[%clk 0:01:10.4]} 19. h4 {[%clk 0:02:03.7]} 19...
Ne5 {[%clk 0:01:00]} 20. Rd1 {[%clk 0:01:58.3]} 20... Rf8 {[%clk 0:00:49.3]} 21.
Qg3 {[%clk 0:01:55.8]} 21... Kh8 {[%clk 0:00:44.3]} 22. h5 {[%clk 0:01:48.1]}
22... Bh6 {[%clk 0:00:37.2]} 23. Nd4 {[%clk 0:01:46.9]} 23... Rg8 {[%clk
0:00:33.3]} 24. Qh4 {[%clk 0:01:34]} 24... Raf8 {[%clk 0:00:27.5]} 25. Ne6
{[%clk 0:01:31.2]} 25... Nf3+ {[%clk 0:00:21.5]} 26. Kf1 {[%clk 0:01:27.6]}
26... Nxh4 {[%clk 0:00:20.6]} 27. Nxc5 {[%clk 0:01:27.3]} 27... Nxg2 {[%clk
0:00:16.6]} 28. Ne6 {[%clk 0:01:23.4]} 28... Ne3+ {[%clk 0:00:16.6]} 29. Ke2
{[%clk 0:01:23.7]} 29... Nxd1 {[%clk 0:00:16.4]} 30. Nxf8 {[%clk 0:01:23.8]}
30... Nxc3+ {[%clk 0:00:16.8]} 31. bxc3 {[%clk 0:01:24.3]} 31... Rxf8 {[%clk
0:00:16.3]} 32. Rh3 {[%clk 0:01:21.1]} 32... Rf5 {[%clk 0:00:16.2]} 33. c4
{[%clk 0:01:20.6]} 33... Kg7 {[%clk 0:00:16.3]} 34. Kd3 {[%clk 0:01:20.7]} 34...
Rxf2 {[%clk 0:00:15.5]} 35. a4 {[%clk 0:01:19.2]} 35... Ra2 {[%clk 0:00:13.3]}
36. Ke4 {[%clk 0:01:17.1]} 36... Rxa4 {[%clk 0:00:12.7]} 37. Kf5 {[%clk
0:01:17.3]} 37... Rxc4 {[%clk 0:00:12]} 38. Rg3+ {[%clk 0:01:17.8]} 38... Kf7
{[%clk 0:00:11.9]} 39. Rf3 {[%clk 0:01:18.4]} 39... Rf4+ {[%clk 0:00:11.2]} 40.
Rxf4 {[%clk 0:01:18.6]} 40... Bxf4 {[%clk 0:00:11.8]} 41. Kxf4 {[%clk 0:01:19]}
41... Kf6 {[%clk 0:00:12.4]} 0-1